[Event "French-ch U16-U18 2024"]
[Site "Agen"]
[Date "2024.04.19"]
[Round "7.16"]
[White "Belkaid, Sohan"]
[Black "Razafindratsima, Timothe"]
[Result "0-1"]
[ECO "B45"]
[WhiteElo "2412"]
[BlackElo "2438"]
[Annotator "TA"]
[PlyCount "110"]
[EventDate "2024.04.14"]
[EventType "swiss"]
[EventCountry "FRA"]
[SourceTitle "playchess.com"]
[Source "ChessBase"]
[SourceQuality "1"]
[TimeControl "5400+30"]

{[%evp 57,110,-25,0,0,0,0,585,565,633,633,1036,1040,1206,975,940,425,427,425,656,658,897,857,777,0,744,687,706,536,491,0,0,0,85,47,8,8,177,40,154,0,0,0,0,-371,-352,-701,-237,-232,-247,-515,-515,-6788,-6195,-29979,-29980]} 1. e4 {[%emt 0:04:03]} c5 {[%emt 0:00:13]} 2. Nf3 {[%emt 0:00:09]} e6 {[%emt 0:00:08]} 3. d4 {[%emt 0:00:11]} cxd4 {[%emt 0:00:08]} 4. Nxd4 {[%emt 0:00:06]} Nf6 {[%emt 0:00:11]} 5. Nc3 {[%emt 0:01:00]} Nc6 {[%emt 0:00:07]} 6. Ndb5 {[%emt 0:01:38]} Bc5 {[%emt 0:00:18]} 7. Bf4 {[%emt 0:02:38]} O-O {[%emt 0:00:27] B45: Sicilian Four Knights.} 8. Bc7 {[%emt 0:00:14]} Qe7 {[%emt 0:00:17]} 9. Bd6 {[%emt 0:00:11]} Bxd6 {[%emt 0:00:02]} 10. Qxd6 {[%emt 0:00:09]} Qd8 {[%emt 0:00:06]} 11. O-O-O {[%emt 0:00:30]} a6 {[%emt 0:00:18]} 12. Nd4 {[%emt 0:00:37]} Ne7 {[%emt 0:00:29]} 13. h4 {[%emt 0:01:43]} b5 {[%emt 0:00:43]} 14. h5 {[%emt 0:03:25]} Ne8 {[%emt 0:00:47]} 15. Qh2 {[%emt 0:00:30]} h6 {[%emt 0:00:22]} 16. g4 {[%emt 0:15:46]} Bb7 {[%emt 0:04:02]} 17. Bd3 $146 {[%emt 0:07:37]} ({Predecessor:} 17. Bg2 b4 18. Nce2 Nf6 19. g5 hxg5 20. h6 Ng4 21. Qg3 Nxh6 22. Qxg5 Ng6 23. Nxe6 Qxg5+ 24. Nxg5 {0-1 Barthel,A (2073)-Zhu,J (2467) Reykjavik op 2024 (1)}) 17... Qc7 {[%emt 0:33:39]} 18. f4 {[%emt 0:08:38]} b4 {[%emt 0:18:14]} 19. Nce2 {[%emt 0:02:49]} f6 {[%emt 0:08:46]} 20. Rhg1 {[%emt 0:10:24]} e5 {[%emt 0:01:57]} 21. fxe5 {[%emt 0:16:09]} Qxe5 {[%emt 0:02:17]} 22. Qf2 {[%emt 0:00:49]} Rc8 {[%emt 0:02:22]} 23. Nf5 {[%emt 0:11:19]} Nxf5 {[%emt 0:01:08]} 24. exf5 {[%emt 0:00:16]} Nd6 {[%emt 0:01:25]} 25. Nf4 {[%emt 0:03:58]} Ne4 {[%emt 0:04:21]} 26. Bxe4 {[%emt 0:01:42]} Bxe4 {[%emt 0:00:01]} 27. Rd2 {[%emt 0:02:28]} Rc4 {[%emt 0:06:12]} 28. Ng6 {[%emt 0:02:20]} Qa5 {[%emt 0:00:01]} 29. Nxf8 {[%emt 0:00:28]} b3 {[%emt 0:08:47]} (29... Qxa2 $5 30. Kd1 Kxf8 $17) 30. a3 $1 {[%emt 0:00:19]} (30. axb3 $2 Qa1#) 30... Bxc2 {[%emt 0:00:28]} 31. Ng6 {[%emt 0:01:40]} (31. Nxd7 Qc7 (31... Bxf5+ 32. Kd1 $15) 32. Nb6 Rc6 $17) 31... Be4+ $2 {[%emt 0:06:16][%mdl 8192]} (31... Bxf5+ 32. Kd1 Be4 33. Qg3 $18 (33. Rxd7 Rc5 $18)) (31... Qc7 $1 $11 32. Rd4 Bxf5+ 33. Rxc4 Qxc4+ 34. Kd2 (34. Kd1 Bxg4+ 35. Rxg4 Qxg4+ 36. Qe2 Qd4+ 37. Qd2 Qg1+ 38. Qe1 Qg4+ 39. Kc1 Qg5+ 40. Kb1 Kh7 $11) 34... Qd3+ (34... Bxg6 $2 35. hxg6 Qc2+ 36. Ke3 $18) 35. Ke1 Qb1+ 36. Ke2 Qc2+ 37. Kf1 Qd1+ 38. Kg2 Qxg4+ 39. Kf1 Qd1+ 40. Qe1 (40. Kg2 Qg4+ 41. Kf1 Qc4+ 42. Kg2 Qg4+ $11) 40... Qf3+ 41. Qf2 Qd1+ 42. Kg2 Qg4+ 43. Kf1 Qd1+) 32. Kd1 $18 {[%emt 0:00:08]} Qb5 {[%emt 0:01:58]} 33. Rg3 {[%emt 0:00:52]} Bc2+ {[%emt 0:00:00]} 34. Ke1 {[%emt 0:00:25]} Kh7 {[%emt 0:00:04]} 35. Re3 {[%emt 0:00:56]} Be4 {[%emt 0:00:42]} 36. Rc3 {[%emt 0:00:58]} (36. Rxd7 $142 {Strongly threatening Qd2.} Qa5+ 37. Kd1) 36... Rxc3 $18 {[%emt 0:00:01]} 37. bxc3 {[%emt 0:00:01]} Qc6 {[%emt 0:00:04]} (37... Bc2 $142 38. Rxc2 bxc2 39. Qxc2 Qc5) 38. Qe3 $18 {[%emt 0:01:50]} d6 {[%emt 0:01:25]} 39. Nf8+ {[%emt 0:00:31]} Kg8 {[%emt 0:00:00]} 40. Ng6 {[%emt 0:00:20]} Kh7 $1 {[%emt 0:00:00]} 41. Re2 {[%emt 0:00:26]} d5 {[%emt 0:01:00]} 42. Kf2 {[%emt 0:00:33]} Qd6 {[%emt 0:00:00]} 43. Qg3 $2 {[%emt 0:00:19]} ({White should try} 43. Nf4 $18 {Kg3 is the strong threat.} Qc7 44. Rb2) 43... Qb6+ $1 $11 {[%emt 0:00:01]} 44. Qe3 {[%emt 0:00:19]} Qb8 {[%emt 0:00:04]} (44... Qd6 $11) 45. Qd2 $1 $16 {[%emt 0:01:05]} Qh2+ {[%emt 0:01:46]} 46. Ke3 {[%emt 0:00:20]} Qg3+ {[%emt 0:00:09]} 47. Kd4 {[%emt 0:00:06]} Qxg4 {[%emt 0:00:55] [#]} (47... Qc7 $1 $14 48. c4 Qxc4+ 49. Ke3 Qc5+ 50. Qd4 Qc1+ 51. Kf2 Qxa3) 48. Kc5 $2 {[%emt 0:00:20]} (48. Rf2 $1 $16 {Black must now prevent Qf4.} Qg1 49. Qe2) 48... Qxf5 $11 {[%emt 0:00:08]} 49. Kb4 {[%emt 0:00:50]} Qxh5 {[%emt 0:00:21]} 50. Nf4 $2 {[%emt 0:00:37][%mdl 8192]} (50. Nf8+ $1 $11 {and White stays safe.} Kg8 51. Ne6) 50... Qe5 $19 {[%emt 0:00:28]} 51. Nxd5 $2 {[%emt 0:00:46] [#]} (51. Kxb3 $2 Qb8+ 52. Ka4 Qb5#) (51. c4 dxc4 (51... b2 52. Qxb2 Qb8+ 53. Ka5 $17) 52. Kxc4 (52. Qe1 $2 b2 $19)) 51... b2 $2 {[%emt 0:01:40]} (51... Qxd5 52. Qxd5 Bxd5 53. c4 $14) (51... Qb8+ $1 {[%mdl 512]} 52. Kc5 Qb5+ 53. Kd6 Bxd5 54. Qxd5 Qxe2 55. Qxb3 Qd3+ 56. Kc5 h5) 52. Qxb2 $19 {[%emt 0:00:27]} (52. Nxf6+ Kg6 53. Rg2+ Bxg2 (53... Kxf6 54. Qd8+ Kf7 55. Qd7+ Kg8 56. Rxb2 $11) 54. Qxg2+ Kxf6 (54... Kf7 55. Qb7+ Kxf6 56. Qc6+ Kf5 57. Qd7+ Kg6 58. Qd3+ Qf5 59. Kc4 Qxd3+ 60. Kxd3 b1=Q+ 61. Kd4 h5 62. Ke3 h4 63. Kd2 h3 64. Ke3 h2 65. Kd4 h1=Q 66. c4 Qhe4+ 67. Kc5 Qbb7 68. Kd6 Qee7#) 55. Qc6+ Kf5 56. Qd7+ Kg6 (56... Qe6 {gets mated.} 57. Qd3+ Qe4+ 58. Qxe4+ Kxe4 59. Kc5 b1=Q 60. c4 Qb8 61. Kc6 Ke5 62. a4 h5 63. a5 h4 64. c5 h3 65. Kd7 Qb7+ 66. Kd8 Ke6 67. Ke8 Qe7#) 57. Qd3+ Qf5 58. Qxf5+ Kxf5 59. Kc5 b1=Q (59... b1=B 60. Kd4 h5 61. c4 g5 62. Kc5 h4 63. Kd4 h3 64. c5 h2 65. c6 h1=Q 66. c7 Qc1 67. c8=R Qxc8 68. a4 Kf4 69. Kd5 Qc7 70. Kd4 a5 71. Kd5 Ba2+ 72. Kd4 Qc4#) 60. Kc4 g5 61. Kd4 g4 62. Kd5 g3 63. Kd4 g2 64. Kc5 g1=Q+ (64... g1=R 65. Kd6 Qb6+ 66. Ke7 Rg7+ 67. Kf8 Qf6+ 68. Ke8 Qe7#) 65. Kc6 Qbb6+ 66. Kd7 Qg7+ 67. Ke8 Qb8#) 52... Qxd5 {[%emt 0:00:12]} 53. c4 $2 {[%emt 0:00:20]} (53. a4) 53... a5+ $19 {[%emt 0:00:13]} 54. Kb3 {[%emt 0:00:37]} (54. Ka4 $142 Qxc4+ 55. Kxa5) 54... Qd1+ $19 {[%emt 0:00:38]} 55. Ka2 {[%emt 0:00:11]} Bd3 {[%emt 0:00:06]} 0-1

[Event "French-ch U16-U18 2024"]
[Site "Agen"]
[Date "2024.04.19"]
[Round "7.17"]
[White "Makkar, Rajat"]
[Black "Siffert, Arman"]
[Result "1-0"]
[ECO "E66"]
[WhiteElo "2452"]
[BlackElo "2150"]
[Annotator "TA"]
[PlyCount "49"]
[EventDate "2024.04.14"]
[EventType "swiss"]
[EventCountry "FRA"]
[SourceTitle "playchess.com"]
[Source "ChessBase"]
[SourceQuality "1"]
[TimeControl "5400+30"]

{[%evp 23,49,19,10,7,64,59,59,55,121,115,129,116,138,129,160,170,373,375,433,450,422,395,560,560,1145,1247,1851,1823]} 1. Nf3 {[%emt 0:00:06]} Nf6 {[%emt 0:00:11]} 2. c4 {[%emt 0:00:09]} g6 {[%emt 0:00:23]} 3. g3 {[%emt 0:00:12]} Bg7 {[%emt 0:00:05]} 4. Bg2 {[%emt 0:00:04]} O-O {[%emt 0:00:11]} 5. Nc3 {[%emt 0:00:07]} d6 {[%emt 0:00:34]} 6. d4 {[%emt 0:00:05][%cal Bd2d4,Bd4d5][%mdl 32]} Nc6 {[%emt 0:00:53]} 7. d5 {[%emt 0:00:06]} Na5 {[%emt 0:00:59]} 8. b3 {[%emt 1:33:41]} c5 {[%emt 0:04:42]} 9. Bb2 {[%emt 0:00:00]} a6 {[%emt 0:01:49]} 10. O-O {[%emt 0:00:00]} Rb8 {[%emt 0:01:37]} 11. Nd2 {[%emt 0:00:00]} b5 {[%emt 0:01:48]} 12. Qc2 {[%emt 0:00:00]} e6 {[%emt 0:06:00]} 13. e4 {[%emt 0:00:00]} exd5 {[%emt 0:02:12]} (13... Bd7 $11) 14. cxd5 $14 {[%emt 0:00:00]} ({Much weaker is} 14. Nxd5 $6 Nc6 $11) 14... Re8 {[%emt 0:05:15]} 15. Nd1 {[%emt 0:00:00][%cal Bc3d1,Bd1e3,Be3g4][%mdl 32] White is slightly better.} Nd7 {[%emt 0:15:47]} (15... Bd7 $14) 16. Bxg7 $16 {[%emt 0:00:00]} Kxg7 {[%emt 0:00:35]} 17. Ne3 {[%emt 0:00:00]} Kg8 {[%emt 0:10:20]} 18. Rae1 {[%emt 0:00:00]} b4 {[%emt 0:07:53]} 19. f4 {[%emt 0:00:00]} Qf6 $2 {[%emt 0:06:20] [#]} (19... c4) 20. e5 $1 $18 {[%emt 0:00:00][%mdl 512]} dxe5 {[%emt 0:16:18]} (20... Qg7 21. e6) 21. Ng4 {[%emt 0:00:00]} Qg7 {[%emt 0:04:32]} 22. fxe5 {[%emt 0:00:00]} Rb6 {[%emt 0:07:24]} (22... h5 $142 23. Nf6+ Nxf6) 23. Ne4 {[%emt 0:00:00] White is clearly winning.} Rxe5 {[%emt 0:03:55]} 24. Nxe5 {[%emt 0:00:00]} ({Not} 24. Nxc5 Rxe1 25. Rxe1 Qd4+ 26. Qf2 Qxf2+ 27. Kxf2 Kg7 $18 (27... Nxc5 $2 {loses.} 28. Re8+ Kg7 29. Rxc8 $18)) 24... Nxe5 {[%emt 0:00:09]} 25. Qxc5 {[%emt 0:00:00] White took control after the opening.   Weighted Error Value: White=0.00 (flawless) /Black=0.59.  Mistake:       	---       	Black=4      Inaccurate:     	---       	Black=2      OK:         	White=8     	Black=1      Best:        	White=1     	---} 1-0

[Event "French-ch U16-U18 2024"]
[Site "Agen"]
[Date "2024.04.19"]
[Round "7.18"]
[White "Warnier, Yanis"]
[Black "Trabet, Mathis"]
[Result "0-1"]
[ECO "B81"]
[WhiteElo "2116"]
[BlackElo "2167"]
[Annotator "TA RC"]
[PlyCount "116"]
[EventDate "2024.04.14"]
[EventType "swiss"]
[EventCountry "FRA"]
[SourceTitle "playchess.com"]
[Source "ChessBase"]
[SourceQuality "1"]
[TimeControl "5400+30"]

{[%evp 12,116,45,37,54,24,79,74,96,70,82,81,93,61,101,116,117,105,125,123,120,93,123,131,125,117,150,84,148,156,179,142,164,184,227,272,259,187,214,185,158,139,142,68,230,233,145,157,150,0,161,175,554,409,403,387,393,401,749,446,802,519,516,528,504,168,174,184,528,539,562,0,124,117,186,138,213,164,445,178,187,188,305,295,308,223,197,213,249,-104,-118,-154,-58,-93,-3,-69,-67,-67,-67,-146,-91,-375,-368,-377,-377,-479,-222]} 1. e4 {[%emt 0:00:06]} c5 {[%emt 0:00:05]} 2. Nf3 {[%emt 0:00:04]} e6 {[%emt 0:00:09]} 3. d4 {[%emt 0:00:03]} cxd4 {[%emt 0:00:05]} 4. Nxd4 {[%emt 0:00:05]} Nf6 {[%emt 0:00:25]} 5. Nc3 {[%emt 0:00:07]} d6 {[%emt 0:00:13]} 6. g4 {[%emt 0:02:46]} h6 {[%emt 0:00:09]} 7. h4 {[%emt 0:00:06]} a6 {[%emt 0:00:43]} 8. Qf3 {[%emt 0:01:12]} Nc6 {[%emt 0:14:20]} (8... e5 $11 9. Nf5 Bxf5 10. exf5 (10. gxf5 Qc7 $16) 10... Nc6 (10... d5 $2 11. g5 $18)) 9. Nxc6 $16 {[%emt 0:00:47]} bxc6 {[%emt 0:00:05] White is better.} 10. g5 {[%emt 0:00:25]} Nd7 {[%emt 0:04:35]} 11. gxh6 {[%emt 0:23:53]} gxh6 {[%emt 0:00:22]} 12. Bd2 {[%emt 0:00:05]} Qf6 {[%emt 0:04:02]} 13. Qg3 {[%emt 0:04:01]} Qg7 {[%emt 0:24:01]} 14. Qh2 {[%emt 0:01:54]} Rg8 {[%emt 0:02:55]} 15. O-O-O {[%emt 0:01:32]} Bb7 {[%emt 0:03:21]} 16. Bf4 {[%emt 0:13:53]} Ne5 {[%emt 0:05:15]} 17. Be2 {[%emt 0:01:29]} Qf6 {[%emt 0:03:22]} 18. h5 {[%emt 0:09:23]} Be7 {[%emt 0:02:55]} 19. Bg3 {[%emt 0:11:34]} (19. Na4 $142) 19... O-O-O {[%emt 0:06:01]} (19... c5 $142) 20. f4 {[%emt 0:03:06]} Nd7 {[%emt 0:02:47]} 21. Qf2 {[%emt 0:01:32]} Qh8 {[%emt 0:11:04]} 22. Rh3 {[%emt 0:04:59]} c5 {[%emt 0:06:37]} 23. Qf1 {[%emt 0:02:09]} Nb8 {[%emt 0:00:29]} 24. Be1 {[%emt 0:00:54] Threatens to win with Na4.} Qg7 {[%emt 0:03:26]} 25. Na4 {[%emt 0:01:47][%cal Bc3a4,Ba4b6,Bb6c4][%mdl 32]} Qg2 {[%emt 0:00:35]} 26. Ba5 {[%emt 0:01:34]} Qxf1 {[%emt 0:00:21]} 27. Bxf1 {[%emt 0:00:28]} (27. Rxf1 Bxe4 28. Bxd8 Bxd8 $16) (27. Nb6+ $16 Kc7 28. Na4+ (28. Rxf1 Rde8 $16) (28. Bxf1 Bxe4 29. Re3 Bb7 $18) 28... Kc8 29. Nb6+ (29. Rxf1 Bxe4 30. Rb3 Rde8 $11) (29. Bxf1 Nd7 $16) 29... Kc7 30. Bxf1 (30. Rxf1 Rde8 $16) 30... Bxe4 31. Re3) 27... Rde8 $2 {[%emt 0:02:40]} (27... Bxe4 $1 $14 28. Rb3 Rde8) 28. Nb6+ $18 {[%emt 0:00:24]} Kc7 {[%emt 0:00:15]} 29. Nc4+ {[%emt 0:06:49]} Kc8 {[%emt 0:00:02]} 30. Nb6+ {[%emt 0:02:37]} Kc7 {[%emt 0:00:01] [#]} 31. e5 $1 {[%emt 0:02:52]} Kc6 {[%emt 0:01:04]} (31... dxe5 {is tougher.} 32. Nc4+ (32. fxe5 Bg5+ 33. Kb1 Nc6 $16) 32... Kc8) 32. exd6 {[%emt 0:01:22]} Bxd6 {[%emt 0:00:16][%cal Be7d6,Bd6f4,Bf4g5][%mdl 32]} 33. Be2 {[%emt 0:01:48] And now Bf3+ would win.} Bxf4+ {[%emt 0:00:36]} 34. Kb1 {[%emt 0:00:06] Nc4 is the strong threat.} e5 {[%emt 0:01:19]} (34... Rd8 $142) 35. Bc4 {[%emt 0:00:35]} Rd8 {[%emt 0:00:39]} (35... Kc7 $142 36. Bxf7 Nc6 37. Nd5+ Kc8 38. Nxf4 Nxa5) 36. Bd5+ {[%emt 0:00:29]} Rxd5 {[%emt 0:01:11]} 37. Nxd5 {[%emt 0:00:13] Rb3 would now be deadly.} Bg5 {[%emt 0:00:36]} 38. Nc3 $2 {[%emt 0:01:06]} (38. Rb3 Nd7 39. Nb6) 38... Bc8 {[%emt 0:01:12]} 39. Rhd3 $40 {[%emt 0:00:37][%mdl 128] Black is in trouble.} Be7 $2 {[%emt 0:00:35]} (39... Be6 {is a better chance.} 40. Rd6+ Kb7) 40. Nd5 {[%emt 0:00:34]} Bg5 {[%emt 0:00:45]} 41. Nc3 $2 {[%emt 0:00:41]} (41. Rb3 $18 {and White stays clearly on top.} Nd7 42. Nb6) 41... Be7 $16 {[%emt 0:00:10]} 42. Bd8 {[%emt 0:00:37]} Bf8 {[%emt 0:00:01]} (42... c4 $16 {was necessary.}) 43. Nd5 {[%emt 0:00:44]} (43. Bh4 $18 {Hoping for Rd8.} Bd7 44. Bf6) 43... Bf5 {[%emt 0:00:40]} (43... Be6 $16 {was worth a try.} 44. Ne7+ Bxe7 45. Bxe7 Rg2) 44. R3d2 {[%emt 0:00:29]} Nd7 $2 {[%emt 0:01:22]} (44... Be6 {was called for.} 45. Ne7+ Bxe7 46. Bxe7 Re8) 45. Nf6 {[%emt 0:00:26]} (45. Ne3 $142 Be6 46. Nc4) 45... Nxf6 $18 {[%emt 0:00:09]} 46. Bxf6 {[%emt 0:00:02]} e4 {[%emt 0:00:56] [#]} (46... Rg3 $142) 47. Rd8 $1 {[%emt 0:00:20]} e3 {[%emt 0:00:10][%cal Og8g2]} 48. Be7 {[%emt 0:01:00]} Bxc2+ {[%emt 0:00:38]} 49. Kxc2 {[%emt 0:01:15]} Rg2+ 50. Kd3 $2 {[%emt 0:00:00]} ({White should try} 50. R1d2 $18 Rxd2+ 51. Rxd2 Bxe7 52. Rg2) 50... Bxe7 $17 {[%emt 0:00:09][%mdl 4096] Endgame. KRR-KRB} 51. Re8 {[%emt 0:00:12]} Bg5 {[%emt 0:00:20] Black is more active.} (51... Kd7 $17 52. Rxe7+ (52. Kxe3+ $2 Kxe8 53. Rb1 Rh2 $19) 52... Kxe7 53. Kxe3 Rxb2) 52. Rc8+ {[%emt 0:00:24]} Kb6 {[%emt 0:02:22]} ({Better is} 52... Kd5 $17 {[%cal Oe3e2] aiming for ...e2!} 53. b3 Rxa2) 53. Rf1 {[%emt 0:00:34]} (53. Re8 $11) 53... Rd2+ $15 {[%emt 0:00:00]} (53... Rxb2 $2 54. Rb8+ (54. Rxf7 Rd2+ 55. Kc3 Rxa2 $11) 54... Kc6 55. Rxb2 $18) 54. Kc3 $1 {[%emt 0:00:42]} Rf2 {[%emt 0:00:04]} (54... e2 55. Re1 $16) 55. Re1 {[%emt 0:00:36]} f5 {[%emt 0:00:33] White must now prevent ...f4.} 56. Rb8+ $2 {[%emt 0:00:29][%mdl 8192]} (56. b4 $17) 56... Kc7 $19 {[%emt 0:00:06]} 57. Rf8 {[%emt 0:00:03]} Kc6 {[%emt 0:00:32]} 58. Kd3 {[%emt 0:00:54]} f4 {[%emt 0:00:51] Black used his chance.   Weighted Error Value: White=0.77/Black=0.51.  Loses game:     	White=1     	Black=1      Missed win:     	White=2     	---        Mistake:       	White=6     	Black=13     Inaccurate:     	White=4     	Black=2      OK:         	White=16    	Black=11     Best:        	White=5     	Black=11     Strong:       	White=2     	---} (58... Rxb2 59. Rxe3 Bxe3 (59... Rxa2 60. Re5 $11) 60. Kxe3 $15) (58... Kd5 $142 59. a4 Rd2+ (59... Rxb2 60. Rxf5+ Kd6 61. a5 $15) 60. Kc3 f4) 0-1

[Event "French-ch U16-U18 2024"]
[Site "Agen"]
[Date "2024.04.19"]
[Round "7.19"]
[White "Ratier-Fontana, Matteo"]
[Black "Mendoza, Mael"]
[Result "0-1"]
[ECO "A05"]
[WhiteElo "2153"]
[BlackElo "2088"]
[Annotator "TA"]
[PlyCount "96"]
[EventDate "2024.04.14"]
[EventType "swiss"]
[EventCountry "FRA"]
[SourceTitle "playchess.com"]
[Source "ChessBase"]
[SourceQuality "1"]
[TimeControl "5400+30"]

{[%evp 9,96,9,30,0,7,0,0,6,21,5,12,-7,0,-34,18,-19,1,-26,-15,-18,13,-59,-58,-63,-56,-54,-50,-39,-35,-36,-48,-39,-37,-38,-42,-69,-69,-60,-55,-44,-33,-67,-30,-37,-34,-66,-57,-75,-61,-68,-71,-75,-57,-90,-88,-93,-85,-84,-85,-90,-75,-97,0,-69,-78,-95,-71,-156,-159,-131,-59,-79,-67,-87,0,-80,0,-145,-68,-87,-63,-179,-183,-188,-164,-189,-169,-1503,-1433]} 1. Nf3 {[%emt 0:04:57]} Nf6 {[%emt 0:00:20]} 2. g3 {[%emt 0:00:07]} b5 {[%emt 0:02:50]} 3. Bg2 {[%emt 0:00:17]} Bb7 {[%emt 0:00:07]} 4. O-O {[%emt 0:00:28]} e6 {[%emt 0:00:36]} 5. d3 {[%emt 0:00:45]} c5 {[%emt 0:01:12]} 6. Nbd2 {[%emt 0:01:31]} Be7 {[%emt 0:01:29]} 7. Re1 {[%emt 0:02:06]} d6 {[%emt 0:01:08]} 8. e4 {[%emt 0:01:51] The position is equal.} Nbd7 {[%emt 0:00:20]} 9. Nf1 {[%emt 0:01:59]} Qc7 {[%emt 0:02:52]} 10. h4 {[%emt 0:08:34]} a5 {[%emt 0:04:55]} 11. N1h2 {[%emt 0:01:47]} e5 {[%emt 0:10:11]} (11... a4 $15) 12. Ng5 {[%emt 0:06:15]} h6 {[%emt 0:14:38]} 13. Nh3 {[%emt 0:00:20]} d5 {[%emt 0:07:22]} 14. exd5 {[%emt 0:02:27]} Bxd5 {[%emt 0:01:13]} 15. f4 {[%emt 0:05:51]} (15. Bxd5 $11 Nxd5 16. Ng4) 15... Bxg2 $15 {[%emt 0:03:47]} 16. Kxg2 {[%emt 0:00:06]} O-O {[%emt 0:00:31]} 17. Ng4 {[%emt 0:05:15][%cal Rg4e5]} Qb7+ {[%emt 0:13:26]} (17... Bd6 {simplifies} 18. Nxf6+ Nxf6 19. Qf3 c4) 18. Qf3 {[%emt 0:19:15]} Qxf3+ {[%emt 0:00:37]} 19. Kxf3 {[%emt 0:00:04]} Nxg4 {[%emt 0:00:06]} 20. Kxg4 {[%emt 0:00:04]} f5+ {[%emt 0:00:13]} 21. Kf3 {[%emt 0:00:07]} Bf6 {[%emt 0:00:12]} 22. a4 {[%emt 0:07:55]} b4 {[%emt 0:02:28][%cal Oc5c4]} 23. Rb1 $1 {[%emt 0:00:40]} Rfe8 {[%emt 0:19:56][%cal Ob4b3]} 24. b3 {[%emt 0:01:37]} Kf7 {[%emt 0:01:06]} 25. Bb2 {[%emt 0:04:56]} exf4 {[%emt 0:00:15] aiming for ...Rxe1.} 26. Bxf6 {[%emt 0:00:14]} Nxf6 {[%emt 0:00:56]} 27. Kxf4 {[%emt 0:01:18]} g6 {[%emt 0:02:37]} 28. Kf3 {[%emt 0:00:50]} Rad8 {[%emt 0:00:53]} 29. Nf4 {[%emt 0:02:21]} g5 {[%emt 0:00:41]} 30. Ng2 {[%emt 0:00:10] [#]} Ng4 {[%emt 0:01:19]} 31. Rbc1 {[%emt 0:03:23]} Kf6 {[%emt 0:02:39] Black is more active.} 32. Rxe8 {[%emt 0:07:15]} Rxe8 $17 {[%emt 0:00:02][%mdl 4096] Endgame. KRN-KRN} 33. Rh1 {[%emt 0:00:28]} Kg6 {[%emt 0:02:44]} 34. Rd1 {[%emt 0:00:26]} Ne5+ {[%emt 0:00:31]} 35. Kf2 {[%emt 0:00:11]} Kh5 {[%emt 0:02:44]} (35... Nc6 $17 {...Nd4 would now be deadly.} 36. hxg5 hxg5) 36. hxg5 {[%emt 0:01:43]} (36. Rh1 $11) 36... Ng4+ $15 {[%emt 0:00:01]} ({Much weaker is} 36... Kxg5 37. Rh1 $11) 37. Kf3 {[%emt 0:00:13]} hxg5 {[%emt 0:00:05]} ({But not} 37... Kxg5 $6 38. Rh1 $11) 38. Rh1+ {[%emt 0:02:32]} ({White should try} 38. Rd2) 38... Kg6 $17 {[%emt 0:00:01]} 39. Rd1 {[%emt 0:00:22]} Re7 {[%emt 0:01:07]} (39... Ne5+ $17 40. Kf2 Ng4+ 41. Kf3 Rh8) 40. Rh1 $15 {[%emt 0:01:00]} Ne5+ {[%emt 0:01:01]} 41. Kf2 $1 {[%emt 0:00:08]} Ng4+ {[%emt 0:00:22]} 42. Kf3 {[%emt 0:00:01] [#]} Re8 {[%emt 0:00:55]} (42... Rh7 $142 $1 {[%cal Rh7h1]} 43. Rxh7 Kxh7) 43. Rd1 $17 {[%emt 0:00:15]} Kg7 {[%emt 0:00:19]} (43... Rh8 $17 44. Rg1 Kg7) 44. Rh1 $15 {[%emt 0:00:25]} Rh8 {[%emt 0:00:43]} 45. Rc1 {[%emt 0:03:40]} ({White must play} 45. Rxh8 $15 Kxh8 46. Ke2) 45... Kf6 {[%emt 0:00:31] Strongly threatening ...Rh2.} 46. Re1 {[%emt 0:04:51]} Ne5+ {[%emt 0:00:16]} 47. Kf2 {[%emt 0:00:08]} Rh2 {[%emt 0:00:18] Threatens to win with ...f4.} 48. Rf1 $2 {[%emt 0:02:19]} (48. Re2) 48... Ng4+ {[%emt 0:00:44] Weighted Error Value: White=0.34/Black=0.17 (very precise) .  Mistake:       	White=5     	Black=5      Inaccurate:     	White=7     	Black=2      OK:         	White=9     	Black=10     Best:        	White=6     	Black=5      Strong:       	White=2     	---} 0-1